bitfinex-derivatives/quotes_BTCF0:USTF0_20250320
["timestamp","ask_amount","ask_price","bid_price","bid_amount"]
[1742504992909,0.2964675,84566.0,84565.0,0.0307]
[1742504993410,0.2964675,84566.0,84565.0,0.03078]
[1742505006525,0.2964675,84566.0,84556.0,0.0327]
[1742505006526,0.1183201,84557.0,84556.0,0.0327]
[1742505006727,0.5922801,84557.0,84556.0,0.0327]
[1742505006916,0.6239801,84557.0,84556.0,0.0327]
[1742505007816,0.6550801,84557.0,84556.0,0.0327]
[1742505008123,0.6560801,84557.0,84556.0,0.0327]
[1742505008327,0.6560801,84557.0,84556.0,0.0636]
[1742505009122,0.6560801,84557.0,84556.0,0.0309]
[1742505010318,0.2952801,84557.0,84556.0,0.0309]
[1742505018734,0.1183215,84556.0,84555.0,0.03274]
[1742505018933,0.1183243,84554.0,84553.0,1e-08]
[1742505019436,0.1822243,84554.0,84553.0,1e-08]
[1742505020940,0.1832243,84554.0,84553.0,1e-08]
[1742505022339,0.1842243,84554.0,84553.0,1e-08]
[1742505025044,0.1842243,84554.0,84536.0,0.3608]
[1742505025045,0.1183481,84537.0,84536.0,0.3608]
[1742505025240,0.1183397,84543.0,84542.0,0.0317]
[1742505025425,0.2314997,84543.0,84542.0,0.0317]
[1742505025630,0.2958997,84543.0,84542.0,0.0317]
[1742505026341,0.2958997,84543.0,84539.0,0.0328]
[1742505026342,0.1183439,84540.0,84539.0,0.0328]
[1742505026835,0.1509439,84540.0,84539.0,0.0328]
[1742505027733,0.1509439,84540.0,84539.0,0.0645]
[1742505030639,0.0001774,84551.0,84550.0,0.1183299]
[1742505031237,0.0001774,84551.0,84550.0,0.1819299]
[1742505031445,0.1185059,84551.0,84550.0,0.1819299]
[1742505032343,0.1516059,84551.0,84550.0,0.1819299]
[1742505040149,0.1833059,84551.0,84550.0,0.1819299]
[1742505048448,0.2148059,84551.0,84550.0,0.1819299]
[1742505049852,0.2148059,84551.0,84550.0,0.1504299]
[1742505050749,0.2148059,84551.0,84550.0,0.0621]
[1742505051342,0.2148059,84551.0,84545.0,0.1183367]
[1742505051343,0.0591671,84547.0,84543.0,0.4206096]
[1742505051548,0.1775054,84545.0,84544.0,0.0322]
[1742505051750,0.1775054,84545.0,84544.0,0.0622]
[1742505051949,0.2384054,84545.0,84544.0,0.0622]
[1742505053153,0.2384054,84545.0,84544.0,0.1805383]
[1742505053558,0.2384054,84545.0,84544.0,0.0622]
[1742505054056,0.2384054,84545.0,84534.0,0.32902749]
[1742505054057,0.1183439,84540.0,84535.0,0.09526036]
[1742505054256,0.1789453,84539.0,84536.0,0.0325]
[1742505054458,0.2921053,84539.0,84531.0,0.21067559]
[1742505054763,0.2921053,84539.0,84532.0,0.0325]
[1742505055262,0.1183537,84533.0,84532.0,0.0325]
[1742505055464,0.1183537,84533.0,84532.0,0.04434728]
[1742505055656,0.2089537,84533.0,84532.0,0.04434728]
[1742505056360,0.2099537,84533.0,84532.0,0.04434728]
[1742505056959,0.2099537,84533.0,84532.0,0.01184728]
[1742505057160,0.1183565,84531.0,84530.0,0.0323]
[1742505057353,0.1183565,84531.0,84529.0,0.0322]
[1742505057354,0.1183593,84529.0,84528.0,0.00909636]
[1742505057551,0.1183607,84528.0,84527.0,0.3608]
[1742505057760,0.1811607,84528.0,84527.0,0.3608]
[1742505058766,0.1183621,84527.0,84526.0,0.01189126]
[1742505059065,0.1183635,84526.0,84525.0,0.1183645]
[1742505059265,0.1839635,84526.0,84525.0,0.1183645]
[1742505060674,0.1849635,84526.0,84525.0,0.1183645]
[1742505061463,0.1849635,84526.0,84525.0,0.13047447]
[1742505061970,0.1859635,84526.0,84525.0,0.13047447]
[1742505064064,0.1183747,84518.0,84507.0,0.11316]
[1742505064274,0.1183747,84518.0,84512.0,0.0312]
[1742505064566,0.1840747,84518.0,84513.0,0.1183813]
[1742505064768,0.1183803,84514.0,84512.0,0.1495821]
[1742505064960,0.1183803,84514.0,84513.0,0.0322]
[1742505065162,0.1183803,84514.0,84513.0,0.03224]
[1742505066062,0.1183803,84514.0,84513.0,4e-05]
[1742505066767,0.1183873,84509.0,84508.0,0.32906319]
[1742505067373,0.1775866,84507.0,84506.0,0.1183903]
[1742505067571,0.1775866,84507.0,84506.0,0.13005548]
[1742505068068,0.002,84514.0,84513.0,0.1183817]
[1742505068270,0.001,84514.0,84513.0,0.5110817]
[1742505068475,0.001,84514.0,84513.0,0.6242417]
[1742505068969,0.0314,84527.0,84516.0,0.1183775]
[1742505069177,0.1183674,84524.0,84516.0,0.1183775]
[1742505069675,0.059182,84526.0,84516.0,0.1183775]
[1742505070568,0.0011774,84517.0,84516.0,0.1183775]
[1742505071786,0.0021774,84517.0,84516.0,0.1183775]
[1742505074775,0.0021774,84517.0,84516.0,0.2315375]
[1742505075781,0.1205535,84517.0,84516.0,0.2315375]
[1742505075981,0.1205535,84517.0,84516.0,0.2628375]
[1742505076581,0.1524535,84517.0,84516.0,0.2628375]
[1742505080178,0.1834535,84517.0,84516.0,0.2937375]
[1742505081877,0.1834535,84517.0,84516.0,0.2315375]
[1742505082285,0.1834535,84517.0,84516.0,0.2925375]
[1742505083784,0.1834535,84517.0,84516.0,0.1793775]
[1742505085988,0.1834535,84517.0,84516.0,0.1484775]
[1742505089988,0.1834535,84517.0,84514.0,0.0319]
[1742505089989,0.1775698,84515.0,84514.0,0.1183795]
[1742505090179,0.1183803,84514.0,84513.0,0.00064]
[1742505090491,0.1183845,84511.0,84510.0,0.44744499]
[1742505090890,0.2130845,84511.0,84510.0,0.44744499]
[1742505091389,0.2130845,84511.0,84510.0,0.21067559]
[1742505092499,0.2130845,84511.0,84510.0,0.1183859]
[1742505092789,0.2140845,84511.0,84510.0,0.1183859]
[1742505093183,0.2150845,84511.0,84510.0,0.1183859]
[1742505100596,0.1183929,84505.0,84504.0,0.1184338]
[1742505100796,0.1183929,84505.0,84504.0,0.1183938]
[1742505101098,0.1806929,84505.0,84504.0,0.1183938]
[1742505101889,0.1816929,84505.0,84504.0,0.1183938]
[1742505102891,0.1826929,84505.0,84504.0,0.13004768]
[1742505110909,0.1826929,84505.0,84504.0,0.16284768]
[1742505112409,0.1826929,84505.0,84504.0,0.19504768]
[1742505112703,0.1826929,84505.0,84504.0,0.01165388]
[1742505112896,0.1826929,84505.0,84504.0,0.1183943]
[1742505113095,0.1826929,84505.0,84504.0,0.16015409]
[1742505113501,0.1183943,84504.0,84503.0,4e-05]
[1742505113699,0.1183943,84504.0,84502.0,0.00875399]
[1742505113700,0.1183957,84503.0,84502.0,0.13881989]
[1742505113899,0.1183957,84503.0,84502.0,0.0116693]
[1742505114107,0.1790957,84503.0,84502.0,0.1184371]
[1742505114605,0.1790957,84503.0,84502.0,4e-05]
[1742505115010,0.1790957,84503.0,84502.0,0.00886438]
[1742505115198,0.1790957,84503.0,84500.0,0.1]
[1742505115405,0.1184084,84494.0,84493.0,0.00896028]
[1742505115715,0.1184126,84491.0,84490.0,0.21067559]
[1742505116102,0.1795126,84491.0,84490.0,0.21067559]
[1742505116299,0.1795126,84491.0,84490.0,0.12855129]
[1742505116503,0.1184168,84488.0,84487.0,0.21268779]
[1742505116702,0.2315768,84488.0,84487.0,0.21268779]
[1742505116910,0.2622768,84488.0,84487.0,0.21268779]
[1742505117207,0.27397104,84488.0,84487.0,0.06298779]
[1742505117407,0.27397104,84488.0,84483.0,0.28358372]
[1742505117408,0.1184224,84484.0,84483.0,0.28358372]
[1742505118510,0.059212,84483.0,84472.0,0.42195118]
[1742505118710,0.1184378,84473.0,84472.0,0.42135118]
[1742505118909,0.2315978,84473.0,84472.0,0.42135118]
[1742505119501,0.2315978,84473.0,84472.0,0.45275118]
[1742505120015,0.2315978,84473.0,84472.0,0.42135118]
[1742505120410,0.2315978,84473.0,84472.0,0.0314]
[1742505120603,0.1184378,84473.0,84472.0,0.0314]
[1742505120803,0.1184378,84473.0,84472.0,0.2158392]
[1742505121008,0.1184378,84475.0,84474.0,0.1776511]
[1742505121712,0.0592168,84476.0,84472.0,0.0974]
[1742505121713,0.1184378,84473.0,84472.0,0.0974]
[1742505121917,0.1184378,84473.0,84472.0,0.2158392]
[1742505122120,0.1502378,84473.0,84472.0,0.2158392]
[1742505122716,0.1502378,84473.0,84472.0,0.0974]
[1742505123118,0.1629378,84473.0,84472.0,0.0974]
[1742505124827,0.1184392,84472.0,84471.0,4e-05]
[1742505125323,0.1618392,84472.0,84471.0,4e-05]
[1742505125819,0.1184616,84456.0,84453.0,0.00867879]
[1742505126018,0.2316216,84456.0,84454.0,0.03]
[1742505126221,0.1776832,84463.0,84455.0,0.118503]
[1742505126421,0.1776857,84461.0,84460.0,0.059228]
[1742505127123,0.1776857,84461.0,84460.0,0.0319]
[1742505127421,0.1776857,84461.0,84460.0,0.065]
[1742505127422,0.2219857,84461.0,84460.0,0.065]
[1742505128325,0.2219857,84461.0,84459.0,4e-05]
[1742505128326,0.118456,84460.0,84459.0,4e-05]
[1742505128517,0.1184644,84454.0,84453.0,0.1500658]
[1742505128718,0.2316644,84454.0,84453.0,0.1500658]
[1742505129114,0.2316644,84454.0,84453.0,0.1831658]
[1742505129626,0.1132,84454.0,84452.0,4e-05]
[1742505129920,0.5225658,84453.0,84452.0,4e-05]
[1742505130724,0.4041,84453.0,84416.0,0.0592584]
[1742505130927,0.1184953,84432.0,84431.0,0.1777421]
[1742505131125,0.1184953,84432.0,84428.0,0.4200498]
[1742505131434,0.1184995,84429.0,84428.0,0.4793009]
[1742505132327,0.1777611,84425.0,84424.0,0.1185053]
[1742505132625,0.1185025,84427.0,84426.0,0.1185023]
[1742505132825,0.1185025,84427.0,84424.0,0.3608]
[1742505132826,0.1185051,84425.0,84424.0,0.3608]
[1742505133227,0.1185079,84423.0,84422.0,0.031]
[1742505133428,0.2317079,84423.0,84422.0,0.1495093]
[1742505134029,0.0592557,84421.0,84417.0,0.3608]
[1742505134328,0.118515,84418.0,84417.0,0.4793164]
[1742505135024,0.118515,84418.0,84417.0,0.3608]
[1742505135219,0.118515,84418.0,84417.0,0.4793164]
[1742505135419,0.118515,84418.0,84417.0,0.5104164]
[1742505135621,0.118515,84418.0,84417.0,0.3608]
[1742505135819,0.0910567,84420.0,84394.0,0.4106]
[1742505135820,0.1185248,84411.0,84410.0,0.0311]
[1742505136027,0.2317648,84411.0,84410.0,0.1496262]
[1742505137228,0.2327648,84411.0,84410.0,0.1496262]
[1742505137531,0.2337648,84411.0,84410.0,0.1496262]
[1742505137830,0.1185262,84410.0,84409.0,4e-05]
[1742505138128,0.1814262,84410.0,84409.0,4e-05]
[1742505139023,0.1185318,84406.0,84405.0,0.0309]
[1742505139226,0.1185374,84402.0,84401.0,4e-05]
[1742505139428,0.1185388,84401.0,84399.0,0.1494412]
[1742505139727,0.1805388,84401.0,84399.0,0.2370819]
[1742505139934,0.1805388,84401.0,84400.0,0.2185402]
[1742505140230,0.1805388,84401.0,84400.0,0.1]
[1742505140432,0.1805388,84401.0,84400.0,0.2185402]
[1742505140826,0.1497388,84401.0,84400.0,0.2185402]
[1742505141025,0.2317788,84401.0,84400.0,0.2185402]
[1742505141326,0.2327788,84401.0,84400.0,0.2185402]
[1742505142131,0.118527,84410.0,84409.0,0.1777879]
[1742505142428,0.118527,84410.0,84409.0,0.0592631]
[1742505142429,0.231767,84410.0,84409.0,0.0592631]
[1742505143827,0.1185276,84409.0,84408.0,0.3608]
[1742505144033,0.1185276,84409.0,84408.0,0.479329]
[1742505144235,0.1185276,84409.0,84408.0,0.3608]
[1742505145018,0.1185304,84407.0,84406.0,0.1517313]
[1742505145225,0.1185304,84407.0,84406.0,0.0332]
[1742505145431,0.1185304,84407.0,84400.0,0.1]
[1742505145432,0.1185388,84401.0,84400.0,0.1]
[1742505145728,0.2317788,84401.0,84400.0,0.1]
[1742505146622,0.2327788,84401.0,84400.0,0.102]
[1742505146821,0.2327788,84401.0,84400.0,0.1352]
[1742505147028,0.2337788,84401.0,84400.0,0.1372]
[1742505148019,0.5945788,84401.0,84400.0,0.1372]
[1742505148229,0.6252788,84401.0,84400.0,0.1372]
[1742505149222,0.2644788,84401.0,84400.0,0.1372]
[1742505150229,0.2645188,84401.0,84400.0,0.1681]
[1742505150632,0.27619074,84401.0,84400.0,0.1681]
[1742505150835,0.24549074,84401.0,84400.0,0.1681]
[1742505151635,0.2338188,84401.0,84400.0,0.1681]
[1742505151834,0.2647188,84401.0,84400.0,0.1681]
[1742505152034,0.2647188,84401.0,84400.0,0.1671]
[1742505152435,0.2647188,84401.0,84400.0,0.1661]
[1742505152737,0.2338188,84401.0,84400.0,0.1661]
[1742505154632,0.2670188,84401.0,84400.0,0.1661]
[1742505155541,0.2338188,84401.0,84400.0,0.1661]
[1742505156026,0.2338188,84401.0,84400.0,0.1974]
[1742505156827,0.1205388,84401.0,84400.0,0.1974]
[1742505157033,0.1205388,84401.0,84400.0,0.3159402]
[1742505163941,0.1205388,84401.0,84400.0,0.1974]
[1742505164442,0.1838388,84401.0,84400.0,0.1974]
[1742505166342,0.1838388,84401.0,84400.0,0.102]
[1742505166540,0.0592737,84395.0,84392.0,4e-05]
[1742505166836,0.1185543,84390.0,84389.0,0.0325]
[1742505167337,0.1791543,84390.0,84389.0,0.0325]
[1742505169240,0.1801543,84390.0,84389.0,0.0325]
[1742505169637,0.1801543,84390.0,84389.0,0.0646]
[1742505170137,0.1811543,84390.0,84389.0,0.0646]
[1742505170539,0.1185641,84383.0,84382.0,0.0313]
[1742505170946,0.1504641,84383.0,84382.0,0.0313]
[1742505171742,0.1836641,84383.0,84382.0,0.0313]
[1742505171950,0.1836641,84383.0,84382.0,0.0965]
[1742505172245,0.1185683,84380.0,84379.0,4e-05]
[1742505172742,0.1185711,84378.0,84377.0,0.0327]
[1742505173134,0.1848711,84378.0,84377.0,0.0327]
[1742505173539,0.1185725,84377.0,84376.0,4e-05]
[1742505173741,0.1185754,84375.0,84374.0,0.0327]
[1742505174043,0.1185754,84375.0,84374.0,0.065]
[1742505174241,0.1848754,84375.0,84374.0,0.065]
[1742505175838,0.1858754,84375.0,84374.0,0.065]
[1742505176035,0.1868754,84375.0,84374.0,0.065]
[1742505178545,0.118581,84371.0,84370.0,4e-05]
[1742505178749,0.0592898,84372.0,84366.0,0.0646]
[1742505178750,0.1185866,84367.0,84366.0,0.0646]
[1742505179245,0.1502866,84367.0,84366.0,0.0646]
[1742505179754,0.1833866,84367.0,84366.0,0.215088]
[1742505179951,0.1843866,84367.0,84366.0,0.182088]
[1742505180354,0.1843866,84367.0,84366.0,0.0635]
[1742505180544,0.1778897,84363.0,84362.0,0.1185924]
[1742505180750,0.1778897,84363.0,84362.0,0.1817924]
[1742505181450,0.2391897,84363.0,84362.0,0.1817924]
[1742505181658,0.0592961,84363.0,84362.0,0.1817924]
[1742505181959,0.1185866,84367.0,84366.0,0.118588]
[1742505182257,0.1195866,84367.0,84366.0,0.479388]
[1742505182460,0.1195866,84367.0,84366.0,0.542888]
[1742505182850,0.1185866,84367.0,84366.0,0.542888]
[1742505183157,0.1195866,84367.0,84366.0,0.542888]
[1742505183657,0.1205866,84367.0,84366.0,0.542888]
[1742505187156,0.1205866,84367.0,84366.0,0.3608]
[1742505187354,0.2152866,84367.0,84366.0,0.3608]
[1742505187749,0.2152866,84367.0,84366.0,0.543288]
[1742505188564,0.22717817,84367.0,84366.0,0.543288]
[1742505189562,0.22717817,84367.0,84366.0,0.0639]
[1742505189762,0.22717817,84367.0,84366.0,0.0317]
[1742505190457,0.118588,84366.0,84365.0,4e-05]
[1742505190653,0.118588,84366.0,84365.0,0.031]
[1742505190856,0.183388,84366.0,84365.0,0.031]
[1742505191161,0.1185964,84360.0,84354.0,0.13036633]
[1742505191359,0.1185964,84360.0,84357.0,0.1186005]
[1742505191567,0.1833964,84360.0,84357.0,0.1186006]
[1742505191761,0.1833964,84360.0,84356.0,0.1186007]
[1742505192064,0.1833964,84360.0,84358.0,4e-05]
[1742505192660,0.1843964,84360.0,84359.0,0.3934]
[1742505192861,0.1843964,84360.0,84359.0,0.4254]
[1742505193366,0.1853964,84360.0,84359.0,0.4254]
[1742505194974,0.1853964,84360.0,84359.0,0.5439978]
[1742505200571,0.002,84360.0,84359.0,0.5439978]
[1742505205474,0.002,84360.0,84359.0,0.5766978]
[1742505206474,0.0667,84360.0,84359.0,0.5766978]
[1742505206978,0.1852964,84360.0,84359.0,0.5766978]
[1742505207472,0.0667,84360.0,84359.0,0.5766978]
[1742505208269,0.20822883,84360.0,84359.0,0.5766978]
[1742505208869,0.32682523,84360.0,84359.0,0.5766978]
[1742505210575,0.20822883,84360.0,84359.0,0.5766978]
[1742505210778,0.32682523,84360.0,84359.0,0.5766978]
[1742505211679,0.20822883,84360.0,84359.0,0.5766978]
[1742505211884,0.14352883,84360.0,84359.0,0.5766978]
[1742505212079,0.002,84360.0,84359.0,0.5766978]
[1742505212882,0.002,84360.0,84359.0,0.6900978]
[1742505226686,0.1759547,84373.0,84372.0,0.6870996]
[1742505227882,0.1769547,84373.0,84372.0,0.6870996]
[1742505228685,0.1769547,84373.0,84372.0,0.6890996]
[1742505230688,0.001,84373.0,84372.0,0.6890996]
[1742505232990,0.0332,84378.0,84377.0,0.1185725]
[1742505233491,0.0332,84378.0,84377.0,0.1825725]
[1742505234285,0.0332,84378.0,84377.0,0.1835725]
[1742505234483,0.0332,84378.0,84377.0,0.1845725]
[1742505238289,0.00017772,84381.0,84380.0,0.1185683]
[1742505238588,0.21202543,84396.0,84390.0,0.1185543]
[1742505238786,0.0309,84395.0,84390.0,0.4793543]
[1742505238985,0.0309,84395.0,84390.0,0.5402543]
[1742505240284,0.0331,84394.0,84390.0,0.5402543]
[1742505240492,0.2945076,84391.0,84390.0,0.1185543]
[1742505240991,0.3276076,84391.0,84390.0,0.1185543]
[1742505241488,0.3607076,84391.0,84390.0,0.1185543]
[1742505244404,0.1847529,84391.0,84390.0,0.1185543]
[1742505247695,0.1847529,84391.0,84390.0,0.1502543]
[1742505248698,0.1847529,84391.0,84390.0,0.1185543]
[1742505249692,0.1847529,84391.0,84390.0,0.1498543]
[1742505250901,0.1847529,84391.0,84390.0,0.0313]
[1742505252101,0.3607076,84391.0,84390.0,0.0313]
[1742505252797,0.3607076,84391.0,84390.0,0.1498543]
[1742505254091,0.3607076,84391.0,84390.0,0.0313]
[1742505254604,0.1847529,84391.0,84390.0,0.1498543]
[1742505258897,0.39677833,84391.0,84390.0,0.1498543]
[1742505259506,0.39677833,84391.0,84390.0,0.1811543]
[1742505260501,0.27822543,84391.0,84390.0,0.1811543]
[1742505261894,0.39677833,84391.0,84390.0,0.1811543]
[1742505262095,0.1847529,84391.0,84390.0,0.1811543]
[1742505263604,0.0662,84391.0,84390.0,0.1811543]
[1742505263800,0.1847529,84391.0,84390.0,0.1811543]
[1742505265704,0.0662,84391.0,84390.0,0.1811543]
[1742505266004,0.0331,84391.0,84390.0,0.1811543]
[1742505266931,0.11637365,84392.0,84391.0,0.1185529]
[1742505267110,0.11637365,84392.0,84391.0,0.1819529]
[1742505267608,0.1492492,84394.0,84393.0,0.1185501]
[1742505268009,0.1492492,84394.0,84393.0,0.1819501]
[1742505268199,0.1818492,84394.0,84393.0,0.1819501]
[1742505269500,0.1828492,84394.0,84393.0,0.1819501]
[1742505269913,0.1838492,84394.0,84393.0,0.1819501]
[1742505272007,0.19549975,84394.0,84393.0,0.1819501]
[1742505274804,0.1838492,84394.0,84393.0,0.1819501]
[1742505280511,0.2149492,84394.0,84393.0,0.1819501]
[1742505282615,0.33246728,84394.0,84393.0,0.1819501]
[1742505295242,0.0592787,84388.0,84372.0,0.0006]
[1742505295433,0.1185641,84383.0,84381.0,0.0312]
[1742505295831,0.5759641,84383.0,84381.0,0.0312]
[1742505296029,0.1185655,84382.0,84381.0,0.0312]
[1742505296538,0.1808655,84382.0,84381.0,0.0312]
[1742505296945,0.1808655,84382.0,84381.0,0.0322]
[1742505298146,0.1808655,84382.0,84381.0,0.0342]
[1742505301143,0.0592849,84379.0,84377.0,0.0308]
[1742505301344,0.2949511,84378.0,84377.0,0.0308]
[1742505302651,0.30700446,84378.0,84377.0,0.0308]
[1742505302856,0.1186077,84352.0,84348.0,0.1186121]
[1742505303057,0.1186105,84350.0,84343.0,0.0593096]
[1742505303251,0.1186105,84350.0,84349.0,0.1186119]
[1742505303453,0.1186119,84349.0,84348.0,0.11328]
[1742505303757,0.1186119,84349.0,84348.0,0.12205295]
[1742505303959,0.1486119,84349.0,84348.0,0.24066625]
[1742505304147,0.1486119,84349.0,84348.0,0.27326625]
[1742505304458,0.1486119,84349.0,84348.0,0.0626]
[1742505304651,0.1186203,84343.0,84342.0,0.40226845]
[1742505304857,0.1186129,84349.0,84348.0,0.1186119]
[1742505305353,0.1196129,84349.0,84348.0,0.1186119]
[1742505305853,0.1206129,84349.0,84348.0,0.1186119]
[1742505306061,0.1206129,84349.0,84348.0,0.1822119]
[1742505307762,0.1510129,84349.0,84348.0,0.1822119]
[1742505308750,0.1206129,84349.0,84348.0,0.1822119]
[1742505309963,0.002,84349.0,84348.0,0.1822119]
[1742505310163,0.1206119,84349.0,84348.0,0.1822119]
[1742505311264,0.1206119,84349.0,84348.0,0.0948]
[1742505311265,0.1536119,84349.0,84348.0,0.0948]
[1742505311565,0.1844119,84349.0,84348.0,0.0948]
[1742505312963,0.1844119,84349.0,84348.0,0.2134133]
[1742505315865,0.1844119,84349.0,84348.0,0.1498133]
[1742505316066,0.1844119,84349.0,84348.0,0.0312]
[1742505316266,0.1844119,84349.0,84348.0,0.1498133]
[1742505316467,0.1844119,84349.0,84348.0,0.1798133]
[1742505322177,0.1186133,84348.0,84347.0,0.1186547]
[1742505322366,0.1514133,84348.0,84347.0,0.1186547]
[1742505322566,0.1817133,84348.0,84347.0,0.1186547]
[1742505323274,0.1489133,84348.0,84347.0,0.1186547]
[1742505323579,0.1817133,84348.0,84347.0,0.1487547]
[1742505323780,0.1817133,84348.0,84347.0,0.03014]
[1742505324175,0.1827133,84348.0,84347.0,4e-05]
[1742505324779,0.1827133,84348.0,84342.0,0.1832212]
[1742505324780,0.1186203,84343.0,84342.0,0.1832212]
[1742505324981,0.4794203,84343.0,84342.0,0.1832212]
[1742505325279,0.5428203,84343.0,84342.0,0.1832212]
[1742505327078,0.5438203,84343.0,84342.0,0.1832212]
[1742505327575,0.1830203,84343.0,84342.0,0.1832212]
[1742505327782,0.1840203,84343.0,84342.0,0.1832212]
[1742505335277,0.0654,84343.0,84342.0,0.1832212]
[1742505335478,0.0322,84343.0,84342.0,0.1832212]
[1742505336475,0.20841949,84343.0,84342.0,0.1832212]
[1742505338979,0.20841949,84343.0,84342.0,0.5440212]
[1742505341889,0.32703979,84343.0,84342.0,0.1510212]
[1742505342271,0.35973979,84343.0,84342.0,0.1510212]
[1742505342479,0.35973979,84343.0,84342.0,0.1827212]
[1742505343484,0.1835203,84343.0,84342.0,0.1827212]
[1742505347595,0.0649,84343.0,84342.0,0.1827212]
[1742505348096,0.1835203,84343.0,84342.0,0.1827212]
[1742505352898,0.0322,84343.0,84342.0,0.1827212]
[1742505363824,0.17621949,84349.0,84348.0,0.1186133]
[1742505364020,0.17621949,84349.0,84348.0,0.5927333]
[1742505364326,0.17621949,84349.0,84348.0,0.6897333]
[1742505364720,0.1185871,84367.0,84356.0,0.1186021]
[1742505365025,0.0311,84369.0,84357.0,0.1186007]
[1742505365226,0.0311,84366.0,84357.0,0.1186007]
[1742505365526,0.0311,84366.0,84365.0,0.1185894]
[1742505366029,0.0311,84366.0,84365.0,0.22721929]
[1742505367115,0.0311,84366.0,84365.0,0.22821929]
[1742505367824,0.0311,84366.0,84365.0,0.23021929]
[1742505368125,0.0311,84366.0,84365.0,0.2185894]
[1742505368327,0.0311,84366.0,84365.0,0.3318694]
[1742505372426,0.0311,84366.0,84365.0,0.2185894]
[1742505372629,0.0311,84366.0,84365.0,0.3318694]
[1742505373526,0.0311,84366.0,84365.0,0.1215894]
[1742505373822,0.149688,84366.0,84365.0,0.1215894]
[1742505374220,0.182588,84366.0,84365.0,0.1215894]
[1742505376627,0.182588,84366.0,84365.0,0.1528894]
[1742505377327,0.182588,84366.0,84365.0,0.1215894]
[1742505383434,0.182588,84366.0,84365.0,0.1536894]
[1742505387329,0.182588,84366.0,84365.0,0.1215894]
[1742505388831,0.182588,84366.0,84365.0,0.1517894]
[1742505391633,0.543388,84366.0,84365.0,0.1215894]
[1742505394242,0.543388,84366.0,84365.0,0.1539894]
[1742505398341,0.543388,84366.0,84365.0,0.1858894]
[1742505398938,0.543388,84366.0,84365.0,0.1539894]
[1742505400242,0.543388,84366.0,84365.0,0.1860894]
[1742505401749,0.543388,84366.0,84365.0,0.1539894]
[1742505402252,0.543388,84366.0,84365.0,0.1860894]
[1742505405347,0.75571342,84366.0,84365.0,0.1860894]
[1742505408858,0.543388,84366.0,84365.0,0.1860894]
[1742505423264,0.65649515,84366.0,84365.0,0.1860894]
[1742505426567,0.7561726,84366.0,84365.0,0.1860894]
[1742505431065,0.7561726,84366.0,84365.0,0.1539894]
[1742505431670,0.7561726,84366.0,84365.0,0.1839894]
[1742505432467,0.7561726,84366.0,84365.0,0.0654]
[1742505432776,0.1186091,84351.0,84347.0,0.01217795]
[1742505432971,0.1186175,84345.0,84338.0,0.1186271]
[1742505433167,0.4794175,84345.0,84342.0,0.03]
[1742505433365,0.6571575,84345.0,84342.0,0.03]
[1742505434378,0.6571575,84345.0,84342.0,0.1486217]
[1742505434582,0.6571575,84345.0,84342.0,0.03]
[1742505435075,0.6571575,84345.0,84344.0,0.40226555]
[1742505435271,0.6571575,84345.0,84344.0,0.28364665]
[1742505435977,0.66913544,84345.0,84344.0,0.28364665]
[1742505436374,0.66913544,84345.0,84343.0,4e-05]
[1742505436375,0.1186189,84344.0,84343.0,4e-05]
[1742505436880,0.1820189,84344.0,84343.0,4e-05]
[1742505437080,0.1820189,84344.0,84343.0,0.03014]
[1742505437375,0.1820189,84344.0,84343.0,4e-05]
[1742505437581,0.1830189,84344.0,84343.0,4e-05]
[1742505438582,0.1840189,84344.0,84343.0,4e-05]
[1742505438781,0.1186246,84340.0,84339.0,0.1796254]
[1742505439076,0.1186246,84340.0,84339.0,0.061]
[1742505439278,0.1820246,84340.0,84339.0,0.061]
[1742505440073,0.1830246,84340.0,84339.0,0.061]
[1742505440273,0.1840246,84340.0,84339.0,0.061]
[1742505440683,0.1840246,84340.0,84339.0,0.179626]
[1742505440872,0.1840246,84340.0,84339.0,0.061]
[1742505441279,0.1186316,84335.0,84334.0,0.0593162]
[1742505441581,0.1186316,84335.0,84334.0,0.0908162]
[1742505441885,0.1509316,84335.0,84334.0,0.0908162]
[1742505442384,0.1186358,84332.0,84330.0,0.3608]
[1742505442676,0.1186358,84332.0,84331.0,0.0315]
[1742505443472,0.13132006,84332.0,84331.0,0.0315]
[1742505443669,0.16202006,84332.0,84331.0,0.0315]
[1742505443871,0.16202006,84332.0,84331.0,0.062]
[1742505444276,0.16202006,84332.0,84331.0,0.1806372]
[1742505444986,0.16105692,84332.0,84331.0,0.1806372]
[1742505445573,0.1493358,84332.0,84331.0,0.1806372]
[1742505448502,0.16135773,84332.0,84331.0,0.1806372]
[1742505448996,0.16135773,84332.0,84331.0,0.062]
[1742505450006,0.1186597,84315.0,84314.0,4e-05]
[1742505450194,0.4794597,84315.0,84314.0,4e-05]
[1742505450393,0.4794597,84315.0,84314.0,0.118699]
[1742505450896,0.5115597,84315.0,84314.0,4e-05]
[1742505451302,0.1507597,84315.0,84314.0,4e-05]
[1742505451508,0.0321,84315.0,84314.0,0.1187011]
[1742505451690,0.11328,84320.0,84319.0,0.0593265]
[1742505451895,0.11328,84320.0,84319.0,0.18995532]
[1742505452301,0.11328,84320.0,84319.0,0.25285532]
[1742505453001,0.11428,84320.0,84319.0,0.25285532]
[1742505453203,0.001,84320.0,84319.0,0.25285532]
[1742505453402,0.11428,84320.0,84319.0,0.25285532]
[1742505453601,0.11528,84320.0,84319.0,0.25285532]
[1742505460913,0.14658,84320.0,84319.0,0.25285532]
[1742505461114,0.17768,84320.0,84319.0,0.25285532]
[1742505462211,0.2963327,84320.0,84319.0,0.25285532]
[1742505463903,0.17768,84320.0,84319.0,0.25285532]
[1742505470114,0.20798,84320.0,84319.0,0.25285532]
[1742505470319,0.0947,84320.0,84319.0,0.25285532]
[1742505470515,0.0644,84320.0,84319.0,0.25285532]
[1742505476718,0.24154568,84320.0,84319.0,0.25285532]
[1742505481334,0.0644,84320.0,84319.0,0.25285532]
[1742505484029,0.0644,84320.0,84319.0,0.18995532]
[1742505485138,0.39512676,84320.0,84319.0,0.18995532]
[1742505487232,0.1186541,84319.0,84317.0,0.1186556]
[1742505487432,0.0593341,84309.0,84308.0,0.1186649]
[1742505487627,0.1780037,84309.0,84308.0,0.1186649]
[1742505487831,0.1780037,84309.0,84308.0,0.13033325]
[1742505488131,0.2753037,84309.0,84308.0,0.13033325]
[1742505488825,0.2753037,84309.0,84308.0,0.13938218]
[1742505489137,0.2763037,84309.0,84308.0,0.13938218]
[1742505490737,0.2773037,84309.0,84308.0,0.13938218]
[1742505492828,0.2773037,84309.0,84308.0,0.13033325]
[1742505494142,0.2773037,84309.0,84308.0,0.16323325]